bitfinex/quotes_BTCUSD_20250601
["timestamp","ask_amount","ask_price","bid_price","bid_amount"]
[1748759706121,0.41632361,104360.0,104350.0,2.89252223]
[1748759706341,0.42590536,104360.0,104350.0,2.89252223]
[1748759706958,0.42590536,104360.0,104350.0,2.89252202]
[1748759707365,0.42590527,104360.0,104350.0,2.87456259]
[1748759707510,0.42590527,104360.0,104350.0,2.89252208]
[1748759707716,0.40674213,104360.0,104350.0,2.89252208]
[1748759707915,0.37564213,104360.0,104350.0,3.68540741]
[1748759708146,0.36066563,104360.0,104350.0,3.68540741]
[1748759708792,0.36066563,104360.0,104350.0,3.68539404]
[1748759709170,0.36066563,104360.0,104350.0,3.66744925]
[1748759709369,0.36066563,104360.0,104350.0,3.63350791]
[1748759709573,0.36066563,104360.0,104350.0,3.6514527]
[1748759710403,0.36066563,104360.0,104350.0,3.63350791]
[1748759710611,0.36066563,104360.0,104350.0,3.65144952]
[1748759711215,0.36066563,104360.0,104350.0,3.63350791]
[1748759711373,0.36066563,104360.0,104350.0,3.65144752]
[1748759711777,0.36066563,104360.0,104350.0,3.651446]
[1748759712427,0.36066563,104360.0,104350.0,3.65144571]
[1748759712589,0.36066563,104360.0,104350.0,3.63350791]
[1748759712792,0.36066563,104360.0,104350.0,3.65144571]
[1748759714062,0.36066563,104360.0,104350.0,3.63350791]
[1748759714277,0.36066563,104360.0,104350.0,3.6514442]
[1748759714418,0.36066563,104360.0,104350.0,3.63350791]
[1748759714621,0.36066563,104360.0,104350.0,3.65144384]
[1748759714824,0.36066563,104360.0,104350.0,3.65144383]
[1748759715356,0.36066563,104360.0,104350.0,3.63350791]
[1748759715709,0.36066563,104360.0,104350.0,3.65144172]
[1748759716388,0.36066563,104360.0,104350.0,3.65144135]
[1748759717469,0.36066563,104360.0,104350.0,3.64246627]
[1748759718147,0.36066563,104360.0,104350.0,3.64246548]
[1748759718585,0.36066563,104360.0,104350.0,3.64246521]
[1748759719128,0.36066563,104360.0,104350.0,3.64246473]
[1748759719810,0.37596563,104360.0,104350.0,3.64246473]
[1748759720599,0.37596563,104360.0,104350.0,3.64246423]
[1748759720927,0.37596563,104360.0,104350.0,3.64246398]
[1748759721314,0.37596563,104360.0,104350.0,3.64246401]
[1748759721677,0.37596563,104360.0,104350.0,3.64246402]
[1748759721876,0.39126563,104360.0,104350.0,3.64246402]
[1748759723157,0.39126563,104360.0,104350.0,3.64246413]
[1748759723366,0.39126563,104360.0,104350.0,3.64246442]
[1748759723990,0.39126563,104360.0,104350.0,3.62453424]
[1748759724193,0.39126563,104360.0,104350.0,3.64246453]
[1748759724518,0.39126563,104360.0,104350.0,3.64246501]
[1748759724719,0.39126563,104360.0,104350.0,3.62453424]
[1748759724923,0.39126563,104360.0,104350.0,3.64246501]
[1748759725244,0.39126563,104360.0,104350.0,3.64246521]
[1748759725773,0.39126563,104360.0,104350.0,3.64246543]
[1748759726098,0.39126563,104360.0,104350.0,3.62453424]
[1748759726302,0.39126563,104360.0,104350.0,3.64246543]
[1748759726607,0.37596563,104360.0,104350.0,3.62453424]
[1748759726762,0.36066563,104360.0,104350.0,3.64246617]
[1748759726957,0.36066563,104360.0,104350.0,3.64246645]
[1748759727624,0.36066563,104360.0,104350.0,3.62453424]
[1748759727941,0.36066563,104360.0,104350.0,3.64246779]
[1748759728683,0.36066563,104360.0,104350.0,3.64246916]
[1748759729824,0.36066563,104360.0,104350.0,3.62453424]
[1748759730030,0.36066563,104360.0,104350.0,3.62441424]
[1748759730596,0.36066563,104360.0,104350.0,3.64235095]
[1748759730797,0.36066563,104360.0,104350.0,3.62441424]
[1748759731688,0.36066563,104360.0,104350.0,3.64235098]
[1748759731890,0.36066563,104360.0,104350.0,3.62441424]
[1748759732096,0.36066563,104360.0,104350.0,3.64235098]
[1748759732800,0.36066563,104360.0,104350.0,3.64235374]
[1748759733579,0.36066563,104360.0,104350.0,3.62441424]
[1748759734224,0.36066563,104360.0,104350.0,3.64235377]
[1748759735036,0.36066563,104360.0,104350.0,3.64235707]
[1748759735521,0.36066563,104360.0,104350.0,3.64235706]
[1748759736516,0.36066563,104360.0,104350.0,3.62441424]
[1748759736766,0.36066563,104360.0,104350.0,3.64237004]
[1748759736958,0.36066563,104360.0,104350.0,3.62441424]
[1748759737195,0.36066563,104360.0,104350.0,3.64237002]
[1748759738126,0.36066563,104360.0,104350.0,3.64237025]
[1748759738498,0.36066563,104360.0,104350.0,3.64237014]
[1748759738704,0.36066563,104360.0,104350.0,3.64237033]
[1748759739155,0.36066563,104360.0,104350.0,3.64237]
[1748759739353,0.36066563,104360.0,104350.0,3.64237002]
[1748759739849,0.36066563,104360.0,104350.0,4.01389242]
[1748759740051,0.11467045,104390.0,104380.0,0.22034787]
[1748759740264,0.10557834,104390.0,104380.0,0.88448557]
[1748759740475,0.00048735,104390.0,104380.0,0.8940653]
[1748759740681,0.00048735,104390.0,104380.0,1.40124394]
[1748759741097,0.00048735,104390.0,104380.0,1.41918946]
[1748759741302,0.00348735,104390.0,104380.0,1.40124394]
[1748759741496,0.00648735,104390.0,104380.0,1.41918906]
[1748759741715,0.00348735,104390.0,104380.0,1.41918906]
[1748759742224,0.00148735,104390.0,104380.0,1.41916541]
[1748759742705,0.00148735,104390.0,104380.0,1.43811033]
[1748759742861,0.00148735,104390.0,104380.0,1.42018887]
[1748759743062,0.00148735,104390.0,104380.0,1.43811034]
[1748759743668,0.00048735,104390.0,104380.0,1.43811034]
[1748759743911,0.00148735,104390.0,104380.0,1.43811034]
[1748759744145,0.00248735,104390.0,104380.0,1.43809894]
[1748759744530,0.00248735,104390.0,104380.0,1.42018887]
[1748759744730,0.00248735,104390.0,104380.0,1.43809894]
[1748759745082,0.00248735,104390.0,104380.0,1.43809893]
[1748759746299,0.00248735,104390.0,104380.0,1.43808426]
[1748759746927,0.00248735,104390.0,104380.0,1.43807963]
[1748759747754,0.00248735,104390.0,104380.0,1.43807857]
[1748759748124,0.00248735,104390.0,104380.0,1.4380742]
[1748759749307,0.00248735,104390.0,104380.0,1.43807095]
[1748759750386,0.00248735,104390.0,104380.0,1.43806855]
[1748759751916,0.00248735,104390.0,104380.0,1.43806704]
[1748759752855,0.00248735,104390.0,104380.0,1.42018887]
[1748759753120,0.00248735,104390.0,104380.0,1.43806624]
[1748759754341,0.00248735,104390.0,104380.0,1.72994624]
[1748759754898,0.00248735,104390.0,104380.0,1.72994673]
[1748759755277,0.00248735,104390.0,104380.0,1.72994749]
[1748759755446,0.00248735,104390.0,104380.0,1.71206887]
[1748759755621,0.00248735,104390.0,104380.0,1.72994751]
[1748759756312,0.00248735,104390.0,104380.0,1.72994899]
[1748759756958,0.00248735,104390.0,104380.0,1.72994947]
[1748759757413,0.00248735,104390.0,104380.0,1.72995144]
[1748759758195,0.00248735,104390.0,104380.0,1.71206887]
[1748759758388,0.00248735,104390.0,104380.0,1.7299548]
[1748759759239,0.00248735,104390.0,104380.0,1.72995559]
[1748759759460,0.00248735,104390.0,104380.0,1.7299556]
[1748759760254,0.00248735,104390.0,104380.0,1.72995637]
[1748759760622,0.00248735,104390.0,104380.0,1.71206887]
[1748759760831,0.00248735,104390.0,104380.0,1.72995636]
[1748759761761,0.00248735,104390.0,104380.0,1.72995725]
[1748759761939,0.00248735,104390.0,104380.0,1.72995709]
[1748759762078,0.00248735,104390.0,104380.0,1.71206887]
[1748759762282,0.00248735,104390.0,104380.0,1.72995705]
[1748759762930,0.00248735,104390.0,104380.0,1.72992176]
[1748759763359,0.00248735,104390.0,104380.0,1.72992246]
[1748759765012,0.22281384,104390.0,104380.0,0.23802647]
[1748759765263,0.26451504,104390.0,104380.0,0.03683852]
[1748759765470,0.25493623,104390.0,104380.0,0.01789359]
[1748759765677,0.25493623,104390.0,104380.0,0.01790254]
[1748759765852,0.21323503,104390.0,104380.0,0.01790254]
[1748759766286,0.21323503,104390.0,104380.0,0.01790889]
[1748759766508,0.00958019,104380.0,104370.0,1.29300803]
[1748759766718,0.00958019,104380.0,104370.0,1.31091646]
[1748759766894,0.02874057,104380.0,104370.0,1.0094959]
[1748759767098,0.03832094,104380.0,104370.0,1.30133608]
[1748759767279,0.04790076,104380.0,104370.0,1.31091682]
[1748759767476,0.04790076,104380.0,104370.0,1.31092434]
[1748759767687,0.04790076,104380.0,104370.0,1.31092275]
[1748759767896,0.01915992,104380.0,104370.0,1.31192275]
[1748759768096,0.01915992,104380.0,104370.0,1.3215034]
[1748759768298,0.01915992,104380.0,104370.0,1.32150339]
[1748759768800,0.01915992,104380.0,104370.0,1.32250339]
[1748759769446,0.01915992,104380.0,104370.0,1.30458904]
[1748759769757,0.02874011,104380.0,104370.0,1.32250968]
[1748759770763,0.02874011,104380.0,104370.0,1.30458904]
[1748759770979,0.02874011,104380.0,104370.0,1.32251007]
[1748759771378,0.02874011,104380.0,104370.0,1.30458904]
[1748759771510,0.01915992,104380.0,104370.0,1.32251007]
[1748759771969,0.01915937,104380.0,104370.0,1.32251007]
[1748759772231,0.03831948,104380.0,104370.0,1.32250763]
[1748759772435,0.03831939,104380.0,104370.0,1.32250763]
[1748759773623,0.03831939,104380.0,104370.0,1.32250442]
[1748759774086,0.03831939,104380.0,104370.0,1.30458904]
[1748759774270,0.03831939,104380.0,104370.0,1.32250442]
[1748759774918,0.03831939,104380.0,104370.0,1.32250354]
[1748759775119,0.02873929,104380.0,104370.0,1.32250354]
[1748759776160,0.02873929,104380.0,104370.0,1.30458904]
[1748759776367,0.0383193,104380.0,104370.0,1.32250168]
[1748759777048,0.0383193,104380.0,104370.0,1.32250077]
[1748759777407,0.02873929,104380.0,104370.0,1.30458904]
[1748759777601,0.02873929,104380.0,104370.0,1.32250043]
[1748759777801,0.02873911,104380.0,104370.0,1.3225]
[1748759778051,0.02873911,104380.0,104370.0,1.32250006]
[1748759778924,0.02873911,104380.0,104370.0,1.32249962]
[1748759779659,0.01915919,104380.0,104370.0,1.32249962]
[1748759779836,0.02873901,104380.0,104370.0,1.32249962]
[1748759780169,0.02873901,104380.0,104370.0,1.32249941]
[1748759780586,0.02873901,104380.0,104370.0,1.3224995]
[1748759780993,0.02873901,104380.0,104370.0,1.32249938]
[1748759781612,0.02873901,104380.0,104370.0,1.30458904]
[1748759781744,0.02873901,104380.0,104370.0,1.32249938]
[1748759782511,0.21123485,104390.0,104380.0,0.21076787]
[1748759782715,0.21123485,104390.0,104380.0,0.56134915]
[1748759782917,0.21123485,104390.0,104380.0,0.54343881]
[1748759783217,0.21123485,104390.0,104380.0,0.56134965]
[1748759783697,0.21123485,104390.0,104380.0,0.57092984]
[1748759784121,0.21123485,104390.0,104380.0,0.56135002]
[1748759784346,0.21123485,104390.0,104380.0,0.54343881]
[1748759784549,0.21123485,104390.0,104380.0,0.56135023]
[1748759784739,0.21123485,104390.0,104380.0,0.56135069]
[1748759784936,0.02922498,104390.0,104380.0,0.57093051]
[1748759785139,0.04143156,104390.0,104380.0,0.57093051]
[1748759785942,0.04143156,104390.0,104380.0,0.57093239]
[1748759786317,0.04143156,104390.0,104380.0,0.57093234]
[1748759786980,0.04143156,104390.0,104380.0,0.58051207]
[1748759787134,0.03185137,104390.0,104380.0,0.56259836]
[1748759787356,0.03185137,104390.0,104380.0,0.5805138]
[1748759787357,0.04143064,104390.0,104380.0,0.5805138]
[1748759788187,0.02227219,104390.0,104380.0,0.5805138]
[1748759788393,0.02922434,104390.0,104380.0,0.5805138]
[1748759788834,0.01964507,104390.0,104380.0,0.5805138]
[1748759788991,0.02922425,104390.0,104380.0,0.58051597]
[1748759789195,0.02922425,104390.0,104380.0,0.58051798]
[1748759789554,0.02922425,104390.0,104380.0,0.58051796]
[1748759789929,0.01006607,104390.0,104380.0,0.58051796]
[1748759790130,0.01964498,104390.0,104380.0,0.58052109]
[1748759790351,0.01964498,104390.0,104380.0,0.56259836]
[1748759790716,0.01964498,104390.0,104380.0,0.58052098]
[1748759791113,0.01964498,104390.0,104380.0,0.58052156]
[1748759792022,0.01964498,104390.0,104380.0,0.58052514]
[1748759792859,0.02922407,104390.0,104380.0,0.58052514]
[1748759793090,0.03880334,104390.0,104380.0,0.58053009]
[1748759793334,0.01964498,104390.0,104380.0,0.58053009]
[1748759793557,0.02922416,104390.0,104380.0,0.58053009]
[1748759793902,0.02922398,104390.0,104380.0,0.58053009]
[1748759794127,0.03880316,104390.0,104380.0,0.58053009]
[1748759794451,0.04838243,104390.0,104380.0,0.58053009]
[1748759794656,0.04838243,104390.0,104380.0,0.58053688]
[1748759795883,0.04838243,104390.0,104380.0,0.56259836]
[1748759796308,0.04838243,104390.0,104380.0,0.58054911]
[1748759797185,0.00048735,104390.0,104380.0,0.99949443]
[1748759797387,0.02922434,104390.0,104380.0,0.99949419]
[1748759797587,0.03544507,104390.0,104380.0,0.67640317]
[1748759797777,0.05084507,104390.0,104380.0,0.67640317]
[1748759797923,0.06042416,104390.0,104380.0,0.67640317]
[1748759798328,0.06042425,104390.0,104380.0,0.67640317]
[1748759798540,0.06042425,104390.0,104380.0,0.67640207]
[1748759798937,0.26159275,104390.0,104380.0,0.57096808]
[1748759799167,0.07958288,104390.0,104380.0,0.87238781]
[1748759799661,0.07958288,104390.0,104380.0,0.54929679]
[1748759799996,0.07958288,104390.0,104380.0,0.87238766]
[1748759800234,0.07958288,104390.0,104380.0,0.85443836]
[1748759800455,0.07958288,104390.0,104380.0,0.87238766]
[1748759800660,0.07958288,104390.0,104380.0,0.87238763]
[1748759801770,0.07958288,104390.0,104380.0,0.85443836]
[1748759801976,0.07958288,104390.0,104380.0,0.87238742]
[1748759802808,0.07958362,104390.0,104380.0,0.87238742]
[1748759803121,0.27117285,104390.0,104380.0,0.85322787]
[1748759803330,0.27117285,104390.0,104380.0,0.85322783]
[1748759803588,0.27117285,104390.0,104380.0,0.85322785]
[1748759803942,0.03168735,104390.0,104380.0,1.2817529]
[1748759804158,0.05084489,104390.0,104380.0,1.2817529]
[1748759804438,0.06042398,104390.0,104380.0,1.28175257]
[1748759805244,0.06042398,104390.0,104380.0,1.26380386]
[1748759805379,0.06042398,104390.0,104380.0,1.2827522]
[1748759805604,0.06042398,104390.0,104380.0,1.26580386]
[1748759805788,0.06042398,104390.0,104380.0,1.28375236]
[1748759805989,0.06042398,104390.0,104380.0,1.28375203]
[1748759806526,0.06042398,104390.0,104380.0,1.26580386]
[1748759806686,0.06042398,104390.0,104380.0,1.28375203]
[1748759806922,0.06042398,104390.0,104380.0,1.28375216]
[1748759807342,0.07000325,104390.0,104380.0,1.28375216]
[1748759807543,0.06042398,104390.0,104380.0,1.26580386]
[1748759807780,0.07000316,104390.0,104380.0,1.28375208]
[1748759808512,0.07000316,104390.0,104380.0,1.28375224]
[1748759809328,0.07000316,104390.0,104380.0,1.28375193]
[1748759809534,0.06042407,104390.0,104380.0,1.28375193]
[1748759810141,0.06042407,104390.0,104380.0,1.28375197]
[1748759810346,0.07000334,104390.0,104380.0,1.26576386]
[1748759810606,0.07000334,104390.0,104380.0,0.96062123]
[1748759811008,0.06042407,104390.0,104380.0,0.96062108]
[1748759811662,0.06042407,104390.0,104380.0,0.96062133]
[1748759811894,0.06042407,104390.0,104380.0,0.94267284]
[1748759812098,0.06042407,104390.0,104380.0,0.96062133]
[1748759812344,0.06042407,104390.0,104380.0,1.04982133]
[1748759813159,0.07000334,104390.0,104380.0,1.04982133]
[1748759813298,0.07000334,104390.0,104380.0,1.03187284]
[1748759813502,0.07000334,104390.0,104380.0,1.04982167]
[1748759814727,0.07000334,104390.0,104380.0,1.04982176]
[1748759814924,0.27117203,104390.0,104380.0,1.04024283]
[1748759815079,0.27117203,104390.0,104380.0,1.03187293]
[1748759815281,0.06042471,104390.0,104380.0,1.04982267]
[1748759815481,0.07000407,104390.0,104380.0,1.0594024]
[1748759815742,0.27117276,104390.0,104380.0,1.04982338]
[1748759815929,0.26159385,104390.0,104380.0,1.03066364]
[1748759816083,0.26159385,104390.0,104380.0,1.03066362]
[1748759816289,0.26159385,104390.0,104380.0,1.04024354]
[1748759816896,0.26159385,104390.0,104380.0,1.04024413]
[1748759817115,0.26159385,104390.0,104380.0,0.95104413]
[1748759817314,0.25201467,104390.0,104380.0,0.92351319]
[1748759817523,0.25201431,104390.0,104380.0,0.94146413]
[1748759817715,0.25201431,104390.0,104380.0,0.94146406]
[1748759817921,0.25201431,104390.0,104380.0,0.95104388]
[1748759818195,0.25201431,104390.0,104380.0,0.95104454]
[1748759818705,0.25201431,104390.0,104380.0,0.93309301]
[1748759818837,0.25201431,104390.0,104380.0,0.95104455]
[1748759819585,0.06042508,104390.0,104380.0,0.96062428]
[1748759819729,0.24243485,104390.0,104380.0,0.94146479]
[1748759820560,0.24243485,104390.0,104380.0,0.93188478]
[1748759820763,0.05084562,104390.0,104380.0,0.92351319]
[1748759820970,0.24243485,104390.0,104380.0,0.93309311]
[1748759821174,0.24243485,104390.0,104380.0,0.95104528]
[1748759821382,0.24243485,104390.0,104380.0,0.95104532]
[1748759821996,0.24243485,104390.0,104380.0,0.96062514]
[1748759822252,0.05084562,104390.0,104380.0,0.97020491]
[1748759823022,0.25201421,104390.0,104380.0,0.97020491]
[1748759823252,0.26159367,104390.0,104380.0,0.95104526]
[1748759823781,0.26159367,104390.0,104380.0,0.95104551]
[1748759824349,0.25201467,104390.0,104380.0,0.94146569]
[1748759824580,0.06042544,104390.0,104380.0,0.96062543]
[1748759824773,0.05084598,104390.0,104380.0,0.97020516]
[1748759825288,0.05084562,104390.0,104380.0,0.97020516]
[1748759825622,0.05084507,104390.0,104380.0,0.97020516]
[1748759825805,0.06042434,104390.0,104380.0,0.97020573]
[1748759826093,0.0700037,104390.0,104380.0,0.97020573]
[1748759826304,0.06042434,104390.0,104380.0,0.97020573]
[1748759826515,0.06042434,104390.0,104380.0,0.95225266]
[1748759826695,0.06042434,104390.0,104380.0,0.97020611]
[1748759827492,0.06042434,104390.0,104380.0,0.95225266]
[1748759828059,0.06042434,104390.0,104380.0,0.64711519]
[1748759828302,0.05084507,104390.0,104380.0,0.97020621]
[1748759828474,0.06042434,104390.0,104380.0,0.97020621]
[1748759829314,0.06042434,104390.0,104380.0,0.95225266]
[1748759829457,0.06042434,104390.0,104380.0,0.97020627]
[1748759829678,0.06042434,104390.0,104380.0,0.97020651]
[1748759829891,0.04126607,104390.0,104380.0,0.97020651]
[1748759830107,0.06042434,104390.0,104380.0,0.97020651]
[1748759830507,0.06042425,104390.0,104380.0,0.97020651]
[1748759830975,0.06042425,104390.0,104380.0,0.97020691]
[1748759831397,0.07000352,104390.0,104380.0,0.97020691]
[1748759832182,0.07000352,104390.0,104380.0,0.97020734]
[1748759832560,0.07000352,104390.0,104380.0,0.97020738]
[1748759833565,0.07000352,104390.0,104380.0,0.97020797]
[1748759833915,0.06042425,104390.0,104380.0,0.97020797]
[1748759834254,0.05084507,104390.0,104380.0,0.97020797]
[1748759834462,0.06042434,104390.0,104380.0,0.97020797]
[1748759834883,0.06042434,104390.0,104380.0,0.97020905]
[1748759835676,0.06042434,104390.0,104380.0,0.95225266]
[1748759835905,0.06042434,104390.0,104380.0,0.97020906]
[1748759836186,0.06042434,104390.0,104380.0,0.97020905]
[1748759836687,0.06042434,104390.0,104380.0,0.97020907]
[1748759838749,0.06042425,104390.0,104380.0,0.97020907]
[1748759839250,0.06042425,104390.0,104380.0,0.67840908]
[1748759839429,0.26421996,104390.0,104380.0,0.53202425]
[1748759839634,0.26159284,104390.0,104380.0,0.53202425]
[1748759839835,0.25201412,104390.0,104380.0,0.53202425]
[1748759840202,0.25201412,104390.0,104380.0,0.53202428]
[1748759840574,0.25201412,104390.0,104380.0,0.53202427]
[1748759840849,0.25201412,104390.0,104380.0,0.51406779]
[1748759841000,0.25201412,104390.0,104380.0,0.53202426]
[1748759842155,0.25201412,104390.0,104380.0,0.53202425]
[1748759842512,0.25201412,104390.0,104380.0,0.53202427]
[1748759843501,0.25201412,104390.0,104380.0,0.53202426]
[1748759844089,0.25201412,104390.0,104380.0,0.53202429]
[1748759844450,0.25201412,104390.0,104380.0,0.5320243]
[1748759845113,0.25201412,104390.0,104380.0,0.54160412]
[1748759845527,0.25201412,104390.0,104380.0,0.5320243]
[1748759847026,0.25201412,104390.0,104380.0,0.53202431]
[1748759847252,0.25201412,104390.0,104380.0,0.52364761]
[1748759847442,0.25201412,104390.0,104380.0,0.54160413]
[1748759848633,0.25201412,104390.0,104380.0,0.52364761]
[1748759848837,0.25201412,104390.0,104380.0,0.54160442]
[1748759849092,0.2867938,104390.0,104380.0,0.22114466]
[1748759849297,0.22703512,104390.0,104380.0,0.23072535]
[1748759849493,0.22703512,104390.0,104380.0,0.23072534]
[1748759849704,0.20787658,104390.0,104380.0,0.01995729]
[1748759849946,0.24782151,104390.0,104380.0,0.01995729]
[1748759850149,0.23202151,104390.0,104380.0,0.01995729]
[1748759850560,0.23202151,104390.0,104380.0,0.0199464]
[1748759851746,0.23202151,104390.0,104380.0,0.01994616]
[1748759852543,0.61959581,104390.0,104380.0,0.01994616]
[1748759852742,0.61959581,104390.0,104380.0,0.02891686]
[1748759853101,0.61959581,104390.0,104380.0,0.02891211]
[1748759853564,0.61959581,104390.0,104380.0,0.002]
[1748759853730,0.61959581,104390.0,104380.0,0.02890086]
[1748759854125,0.61959581,104390.0,104380.0,0.01096695]
[1748759854320,0.61959581,104390.0,104380.0,0.02890086]
[1748759854508,0.57965088,104390.0,104380.0,0.02890086]
[1748759854960,0.57965088,104390.0,104380.0,0.02890062]
[1748759855275,0.57965088,104390.0,104380.0,0.01096671]
[1748759855447,0.57965088,104390.0,104380.0,0.02889941]
[1748759855656,0.57965088,104390.0,104380.0,0.0288945]
[1748759856173,0.66856954,104390.0,104380.0,0.0288945]
[1748759856961,0.66856954,104390.0,104380.0,0.02889033]
[1748759857163,0.57965088,104390.0,104380.0,0.02889033]
[1748759857411,0.57965088,104390.0,104380.0,0.02888441]
[1748759857582,0.57965088,104390.0,104380.0,0.02888079]
[1748759858003,0.57965088,104390.0,104380.0,0.01096026]
[1748759858164,0.57965088,104390.0,104380.0,0.02888077]
[1748759858360,0.57965088,104390.0,104380.0,0.02887973]
[1748759858566,0.6721621,104390.0,104380.0,0.01095922]
[1748759858808,0.6721621,104390.0,104380.0,0.02887769]
[1748759859136,0.6721621,104390.0,104380.0,0.002]
[1748759859288,0.6721621,104390.0,104380.0,0.02887769]
[1748759860046,0.57965088,104390.0,104380.0,0.02887742]
[1748759860462,0.57965088,104390.0,104380.0,0.02887633]
[1748759860662,0.57965088,104390.0,104380.0,0.02887373]
[1748759861074,0.57965088,104390.0,104380.0,0.02887371]
[1748759861428,0.57965088,104390.0,104380.0,0.02887321]
[1748759861645,0.57965088,104390.0,104380.0,0.02887296]
[1748759861835,0.64965088,104390.0,104380.0,0.02887296]
[1748759862046,0.72742657,104390.0,104380.0,0.02887296]
[1748759862519,0.72742657,104390.0,104380.0,0.002]
[1748759862726,0.64965088,104390.0,104380.0,0.03279391]
[1748759863542,0.57965088,104390.0,104380.0,0.03279391]
[1748759863875,0.57965088,104390.0,104380.0,0.03279187]
[1748759864111,0.57965088,104390.0,104380.0,0.02383519]
[1748759864313,0.57965088,104390.0,104380.0,0.03279187]
[1748759865364,0.57965088,104390.0,104380.0,0.0327907]
[1748759865718,0.57965088,104390.0,104380.0,0.00592182]
[1748759865918,0.57965088,104390.0,104380.0,0.03278967]
[1748759866255,0.6721621,104390.0,104380.0,0.03278967]
[1748759866893,0.6721621,104390.0,104380.0,0.03278947]
[1748759867096,0.6721621,104390.0,104380.0,0.03278944]
[1748759867303,0.6721621,104390.0,104380.0,0.0148777]
[1748759867706,0.57965088,104390.0,104380.0,0.03278963]
[1748759868151,0.57965088,104390.0,104380.0,0.03278989]
[1748759869192,0.57965088,104390.0,104380.0,0.03279028]
[1748759869543,0.57965088,104390.0,104380.0,0.03279048]
[1748759869864,0.57965088,104390.0,104380.0,0.00592182]
[1748759870087,0.57965088,104390.0,104380.0,0.03279198]
[1748759870508,0.57965088,104390.0,104380.0,0.03279291]
[1748759871302,0.57965088,104390.0,104380.0,0.03279337]
[1748759871501,0.57965088,104390.0,104380.0,0.014879]
[1748759871706,0.57965088,104390.0,104380.0,0.03279386]
[1748759871905,0.57965088,104390.0,104380.0,0.03279411]
[1748759872682,0.57965088,104390.0,104380.0,0.00592182]
[1748759872834,0.57965088,104390.0,104380.0,0.01488026]
[1748759873218,0.57965088,104390.0,104380.0,0.02384064]
[1748759873418,0.57965088,104390.0,104380.0,0.03280005]
[1748759874049,0.28793088,104390.0,104380.0,0.03280005]
[1748759874274,0.6721221,104390.0,104380.0,0.03280005]
[1748759874455,0.6721221,104390.0,104380.0,0.01488124]
[1748759874661,0.6721221,104390.0,104380.0,0.03280397]
[1748759874862,0.6721221,104390.0,104380.0,0.01488254]
[1748759875113,0.6721221,104390.0,104380.0,0.02384401]
[1748759875312,0.6721221,104390.0,104380.0,0.01488288]
[1748759875506,0.7421221,104390.0,104380.0,0.03280524]
[1748759876052,0.7421221,104390.0,104380.0,0.0238481]
[1748759876484,0.7421221,104390.0,104380.0,0.03281124]
[1748759877356,0.7421221,104390.0,104380.0,0.03281179]
[1748759877576,0.7421221,104390.0,104380.0,0.03281941]
[1748759877981,0.7421221,104390.0,104380.0,0.01488768]
[1748759878182,0.7421221,104390.0,104380.0,0.03281941]
[1748759879674,0.7421221,104390.0,104380.0,0.03283719]
[1748759880205,0.7421221,104390.0,104380.0,0.03284608]
[1748759880860,0.7421221,104390.0,104380.0,0.01489854]
[1748759881066,0.7708881,104390.0,104380.0,0.03285211]
[1748759881271,0.7708881,104390.0,104380.0,0.03284631]
[1748759881456,0.7708881,104390.0,104380.0,0.03184631]
[1748759881882,0.7708881,104390.0,104380.0,0.03184642]
[1748759882100,0.7708881,104390.0,104380.0,0.03184645]
[1748759882318,0.7708881,104390.0,104380.0,0.03084657]
[1748759882560,0.7708881,104390.0,104380.0,0.0308466]
[1748759882998,0.7708881,104390.0,104380.0,0.03084472]
[1748759883652,0.7708881,104390.0,104380.0,0.00392182]
[1748759883860,1.1540881,104390.0,104380.0,0.03083515]
[1748759884246,1.1540881,104390.0,104380.0,0.00392182]
[1748759884478,1.1540881,104390.0,104380.0,0.03083504]
[1748759884680,1.1540881,104390.0,104380.0,0.03083507]
[1748759885596,1.1540881,104390.0,104380.0,0.03083312]
[1748759885934,1.1540881,104390.0,104380.0,0.03083105]
[1748759886505,1.1540881,104390.0,104380.0,0.00392182]
[1748759886711,1.1540881,104390.0,104380.0,0.03082817]
[1748759887482,1.1540881,104390.0,104380.0,0.02185939]
[1748759887657,1.1540881,104390.0,104380.0,0.00392182]
[1748759887892,1.1540881,104390.0,104380.0,0.03082534]
[1748759888988,1.1540881,104390.0,104380.0,0.03082394]
[1748759889133,1.1540881,104390.0,104380.0,0.02185658]
[1748759889334,1.1540881,104390.0,104380.0,0.03082396]
[1748759890028,1.1540881,104390.0,104380.0,0.02185658]
[1748759890217,1.1540881,104390.0,104380.0,0.03082382]
[1748759890612,1.1540881,104390.0,104380.0,0.02185615]
[1748759890820,1.1540881,104390.0,104380.0,0.03082329]
[1748759891063,1.1540881,104390.0,104380.0,0.0308233]
[1748759892460,1.1540881,104390.0,104380.0,0.03082329]
[1748759892694,1.1540881,104390.0,104380.0,0.03082328]
[1748759893376,1.1540881,104390.0,104380.0,0.01288897]
[1748759893626,1.1540881,104390.0,104380.0,0.03082336]
[1748759894226,1.1540881,104390.0,104380.0,0.03082333]
[1748759895129,1.1540881,104390.0,104380.0,0.01288925]
[1748759895330,1.1540881,104390.0,104380.0,0.03082412]
[1748759895543,1.1540881,104390.0,104380.0,0.03082448]
[1748759895855,1.1540881,104390.0,104380.0,0.02185705]
[1748759896083,1.1540881,104390.0,104380.0,0.03082466]
[1748759896851,1.1540881,104390.0,104380.0,0.03082607]
[1748759897053,1.24290347,104390.0,104380.0,0.03082607]
[1748759897705,1.24290347,104390.0,104380.0,0.03082646]
[1748759897904,1.24290347,104390.0,104380.0,0.03082669]
[1748759898118,1.24290347,104390.0,104380.0,0.03082795]
[1748759898451,1.15039225,104390.0,104380.0,0.0308284]
[1748759898665,1.15039225,104390.0,104380.0,0.03082865]
[1748759898864,1.15039225,104390.0,104380.0,0.03082864]
[1748759899940,1.15039225,104390.0,104380.0,0.03083105]
[1748759900410,1.15039225,104390.0,104380.0,0.0308309]
[1748759900810,1.15039225,104390.0,104380.0,0.03083105]
[1748759901366,1.15039225,104390.0,104380.0,0.0308315]
[1748759901593,1.24290347,104390.0,104380.0,0.0308315]
[1748759902137,1.24290347,104390.0,104380.0,0.03083251]
[1748759902294,1.24290347,104390.0,104380.0,0.02186333]
[1748759902501,1.24290347,104390.0,104380.0,0.03083414]
[1748759903326,1.24290347,104390.0,104380.0,0.03083825]
[1748759903698,1.24290347,104390.0,104380.0,0.01289396]
[1748759903905,1.24290347,104390.0,104380.0,0.03083863]
[1748759904329,1.24290347,104390.0,104380.0,0.03083881]
[1748759904877,1.15039225,104390.0,104380.0,0.03083881]
[1748759905408,1.15039225,104390.0,104380.0,0.030844]
[1748759906402,1.15039225,104390.0,104380.0,0.01289588]
[1748759906584,1.15039225,104390.0,104380.0,0.03084428]
[1748759906796,1.15039225,104390.0,104380.0,0.0308476]
[1748759907138,1.15039225,104390.0,104380.0,0.01289708]
[1748759907342,1.15039225,104390.0,104380.0,0.01289838]
[1748759907545,1.24290347,104390.0,104380.0,0.03085151]
[1748759908164,1.24290347,104390.0,104380.0,0.03085159]
[1748759908364,1.15039225,104390.0,104380.0,0.03085175]
[1748759908627,1.15039225,104390.0,104380.0,0.03085193]
[1748759908628,1.15035225,104390.0,104380.0,0.03085193]
[1748759908759,0.85871225,104390.0,104380.0,0.03085202]
[1748759908966,1.15035225,104390.0,104380.0,0.03085202]
[1748759909347,1.15035225,104390.0,104380.0,0.03085201]